bitfinex-derivatives/quotes_ETHF0:USTF0_20250321
["timestamp","ask_amount","ask_price","bid_price","bid_amount"]
[1742522249193,2.08111,1993.9,1993.8,2.7381]
[1742522249388,2.08111,1993.9,1993.8,1.3594]
[1742522250096,2.08111,1993.9,1993.8,2.16235]
[1742522250298,1.2782,1993.9,1993.8,2.16235]
[1742522250887,5.21479,1994.2,1993.9,0.80291]
[1742522250888,3.2078,1994.2,1993.9,0.80291]
[1742522251196,4.5287,1995.0,1994.8,0.80251]
[1742522251493,1.2995,1994.9,1994.8,40.8]
[1742522251693,1.2995,1994.9,1994.8,0.80255]
[1742522252098,1.2995,1994.9,1994.8,1.2765]
[1742522252598,1.2995,1994.9,1994.8,2.07905]
[1742522252793,1.2995,1994.9,1994.8,1.2765]
[1742522253496,1.2995,1994.9,1994.8,2.07905]
[1742522256598,2.00577,1995.4,1995.2,0.80237]
[1742522256599,6.4248,1995.3,1995.2,0.80237]
[1742522256798,7.1214,1995.3,1995.2,0.80237]
[1742522258099,8.4344,1995.3,1995.2,0.80237]
[1742522260197,8.4334,1995.3,1995.2,0.80237]
[1742522260699,1.313,1995.3,1995.2,0.80237]
[1742522261000,4.528,1995.3,1995.2,0.80237]
[1742522261193,4.528,1995.3,1995.2,2.17187]
[1742522261397,47.0195,1995.5,1995.2,2.17187]
[1742522261587,3.2078,1995.9,1995.6,0.80222]
[1742522261788,4.03506,1996.0,1995.9,0.8021]
[1742522261994,4.0351,1996.0,1995.9,0.8021]
[1742522262288,6.4044,1996.0,1995.6,0.00752426]
[1742522262594,0.80218,1995.7,1995.6,0.00752426]
[1742522262795,4.03718,1995.7,1995.6,0.00752426]
[1742522263093,6.01618,1995.7,1995.6,0.00752426]
[1742522282201,6.65578,1995.7,1995.6,0.00752426]
[1742522284009,0.80222,1995.6,1995.5,1.3493]
[1742522284305,5.41942,1995.6,1995.5,1.3493]
[1742522285308,3.2078,1995.6,1995.5,2.15156]
[1742522285813,4.01002,1995.6,1995.5,2.15156]
[1742522286517,5.30442,1995.6,1995.5,2.15156]
[1742522286701,5.30442,1995.6,1995.5,1.3493]
[1742522290011,1.2944,1995.6,1995.5,1.3493]
[1742522290204,0.80222,1995.6,1995.5,1.3493]
[1742522290509,0.80219,1995.7,1995.6,0.80221]
[1742522290704,4.01319,1995.7,1995.6,0.80221]
[1742522291107,0.80222,1995.6,1995.5,2.15153]
[1742522291314,4.01322,1995.7,1995.6,0.80222]
[1742522291512,4.01322,1995.7,1995.6,1.3359]
[1742522292410,5.34022,1995.7,1995.6,1.3359]
[1742522297121,4.01322,1995.7,1995.6,1.3359]
[1742522297318,0.00752426,1995.8,1995.6,1.3359]
[1742522297619,0.00752426,1995.8,1995.7,5.35688]
[1742522297620,0.80966426,1995.8,1995.7,5.35688]
[1742522297814,7.23846426,1995.8,1995.7,42.1469]
[1742522298013,0.80218,1995.7,1995.6,1.3359]
[1742522298219,2.16228,1995.7,1995.6,1.3359]
[1742522298624,2.82198,1995.7,1995.6,1.3359]
[1742522301320,0.80226,1995.5,1995.4,0.00752426]
[1742522301622,7.23306,1995.5,1995.4,0.00752426]
[1742522302618,8.61846,1995.5,1995.4,0.00752426]
[1742522304017,8.70579338,1995.5,1995.4,0.00752426]
[1742522304225,8.61846,1995.5,1995.4,0.00752426]
[1742522305119,8.70579868,1995.5,1995.4,0.00752426]
[1742522305317,8.70579976,1995.5,1995.4,0.00752426]
[1742522305917,8.70579943,1995.5,1995.4,0.00752426]
[1742522306324,8.61846,1995.5,1995.4,0.00752426]
[1742522307225,8.62546,1995.5,1995.4,0.00752426]
[1742522307423,8.62546,1995.5,1995.4,1.35622426]
[1742522307623,8.62546,1995.5,1995.4,2.03512426]
[1742522310318,8.62546,1995.5,1995.4,1.35622426]
[1742522319339,8.62546,1995.5,1995.4,0.00752426]
[1742522319535,8.71282055,1995.5,1995.4,0.00752426]
[1742522320630,8.62546,1995.5,1995.4,0.00752426]
[1742522320934,8.71281967,1995.5,1995.4,0.00752426]
[1742522322337,8.62546,1995.5,1995.4,0.00752426]
[1742522322637,8.71281785,1995.5,1995.4,0.00752426]
[1742522325029,0.8023,1995.4,1995.3,1.3833]
[1742522325233,2.8096,1995.4,1995.3,1.3833]
[1742522328837,2.8096,1995.4,1995.3,2.0645]
[1742522330344,2.1136,1995.4,1995.3,2.0645]
[1742522331645,0.8023,1995.4,1995.3,2.0645]
[1742522332441,3.12691667,1995.4,1995.3,2.0645]
[1742522336147,1.71881667,1995.4,1995.3,2.0645]
[1742522336742,0.8023,1995.4,1995.3,2.0645]
[1742522340346,2.2063,1995.4,1995.3,2.0645]
[1742522342648,0.8023,1995.4,1995.3,2.0645]
[1742522344149,4.0113,1995.4,1995.3,2.0645]
[1742522356055,0.8023,1995.4,1995.3,2.0645]
[1742522356265,4.0103,1995.4,1995.3,2.0645]
[1742522357062,0.8023,1995.4,1995.3,2.0645]
[1742522357264,4.0103,1995.4,1995.3,2.0645]
[1742522359070,5.339,1995.4,1995.3,2.0645]
[1742522361876,3.208,1995.4,1995.3,2.0645]
[1742522362174,3.208,1995.4,1995.3,2.86682]
[1742522362773,4.0103,1995.4,1995.3,2.86682]
[1742522362976,0.8023,1995.4,1995.3,2.86682]
[1742522363279,4.0103,1995.4,1995.3,2.86682]
[1742522363478,3.208,1995.4,1995.3,2.86682]
[1742522365879,4.0103,1995.4,1995.3,2.86682]
[1742522366674,3.208,1995.4,1995.3,2.86682]
[1742522368180,4.0103,1995.4,1995.3,2.86682]
[1742522368385,3.208,1995.4,1995.3,2.0645]
[1742522368581,3.208,1995.4,1995.3,2.86682]
[1742522368780,4.0103,1995.4,1995.3,2.86682]
[1742522369280,3.208,1995.4,1995.3,2.86682]
[1742522369481,4.0103,1995.4,1995.3,2.86682]
[1742522369684,3.208,1995.4,1995.3,2.86682]
[1742522371482,4.0103,1995.4,1995.3,2.86682]
[1742522371981,3.208,1995.4,1995.3,2.86682]
[1742522372182,46.35,1995.6,1995.4,0.80227]
[1742522372382,4.0103,1995.5,1995.4,2.79507]
[1742522373088,5.3816,1995.5,1995.4,2.79507]
[1742522375780,4.5793,1995.5,1995.4,2.79507]
[1742522375988,1.3713,1995.5,1995.4,2.79507]
[1742522376183,5.38156,1995.5,1995.4,2.79507]
[1742522376388,5.38156,1995.5,1995.4,6.00287]
[1742522377287,0.80224,1995.6,1995.5,0.80226]
[1742522377490,4.01024,1995.6,1995.5,2.12696]
[1742522377880,5.40654,1995.6,1995.5,2.12696]
[1742522383991,4.6043,1995.6,1995.5,2.12696]
[1742522384291,5.40652,1995.6,1995.5,2.12696]
[1742522386886,4.6043,1995.6,1995.5,2.12696]
[1742522387095,5.40652,1995.6,1995.5,2.12696]
[1742522387282,4.6043,1995.6,1995.5,2.12696]
[1742522387487,0.00752426,1995.8,1995.7,0.80218]
[1742522387683,4.61702426,1995.8,1995.7,0.80218]
[1742522387992,4.61702426,1995.8,1995.7,43.72178]
[1742522388190,5.41916426,1995.8,1995.7,43.72178]
[1742522389387,0.80226,1995.5,1995.4,3.2078]
[1742522389592,0.80226,1995.5,1995.4,4.01009]
[1742522389797,0.80226,1995.5,1995.4,44.81009]
[1742522390096,2.77916,1995.5,1995.4,46.08999]
[1742522390290,2.77916,1995.5,1995.4,45.2877]
[1742522390490,2.77916,1995.5,1995.4,42.0799]
[1742522393189,5.98696,1995.5,1995.4,40.8]
[1742522395500,0.8023,1995.4,1995.3,2.11184]
[1742522395695,6.0351,1995.4,1995.3,2.11184]
[1742522395990,6.0351,1995.4,1995.2,0.71512426]
[1742522395991,0.80234,1995.3,1995.2,0.00752426]
[1742522396191,5.36474,1995.3,1995.2,0.00752426]
[1742522403306,8.57274,1995.3,1995.2,0.00752426]
[1742522409003,2.00597,1995.2,1994.4,0.80268]
[1742522409206,0.80251,1994.9,1994.8,1.3172]
[1742522409408,4.01051,1994.9,1994.8,1.3172]
[1742522409606,5.95221,1994.9,1994.8,1.3172]
[1742522409911,0.80259,1994.7,1994.6,41.4477]
[1742522410205,4.01059,1994.7,1994.6,41.4477]
[1742522411402,5.34179,1994.7,1994.6,42.8237]
[1742522413309,3.208,1994.7,1994.6,43.62633]
[1742522413513,1.3312,1994.9,1994.7,0.80258]
[1742522413806,0.80251,1994.9,1994.8,2.0205]
[1742522414015,4.01051,1994.9,1994.8,2.82305]
[1742522414505,4.01051,1994.9,1994.8,42.8205]
[1742522416403,0.80251,1994.9,1994.8,42.8205]
[1742522416602,4.01051,1994.9,1994.8,46.0283]
[1742522419518,4.01051,1994.9,1994.8,42.8205]
[1742522419816,5.36361,1994.9,1994.8,42.8205]
[1742522420422,4.01051,1994.9,1994.8,42.8205]
[1742522420623,3.208,1994.9,1994.8,42.8205]
[1742522420817,3.208,1994.9,1994.8,43.62305]
[1742522420818,4.01051,1994.9,1994.8,43.62305]
[1742522421022,4.01051,1994.9,1994.8,42.8205]
[1742522422922,4.01051,1994.9,1994.8,2.0205]
[1742522423322,4.01051,1994.9,1994.8,42.8205]
[1742522424127,0.80251,1994.9,1994.8,42.8205]
[1742522424334,3.208,1994.9,1994.8,43.62305]
[1742522424833,4.01051,1994.9,1994.8,43.62305]
[1742522425929,3.208,1994.9,1994.8,43.62305]
[1742522426231,0.80248,1995.0,1994.9,0.80249]
[1742522426434,3.2078,1995.1,1995.0,0.80247]
[1742522426626,0.80247,1995.0,1994.9,2.78817]
[1742522426828,0.80247,1995.0,1994.9,1.45407]
[1742522427131,7.21825,1995.1,1994.9,1.45407]
[1742522427731,0.80247,1995.0,1994.9,1.45407]
[1742522429632,3.40478,1995.2,1995.1,0.80243]
[1742522429633,0.80242,1995.2,1995.1,0.80243]
[1742522429838,4.01042,1995.2,1995.1,0.80243]
[1742522430636,0.80242,1995.2,1995.1,0.80243]
[1742522430829,4.0104,1995.2,1995.1,0.8024]
[1742522431626,3.208,1995.2,1994.9,3.8594]
[1742522431929,0.80247,1995.0,1994.9,4.66188]
[1742522433440,3.208,1995.2,1994.9,3.8594]
[1742522433740,0.80247,1995.1,1995.0,0.80243]
[1742522434335,4.01047,1995.1,1995.0,0.80243]
[1742522438032,0.80239,1995.3,1995.2,0.80236]
[1742522438237,0.80238,1995.2,1995.1,1.47779]
[1742522438639,2.18998,1995.2,1995.1,1.47779]
[1742522440141,1.3876,1995.2,1995.1,1.47779]
[1742522440435,1.3119,1995.3,1995.2,0.80238]
[1742522440641,1.3119,1995.3,1995.2,1.50218]
[1742522440943,4.5189,1995.3,1995.2,1.50218]
[1742522441243,5.32124,1995.3,1995.2,1.50218]
[1742522441641,0.80234,1995.3,1995.2,1.50218]
[1742522441844,4.00934,1995.3,1995.2,1.50218]
[1742522442442,3.207,1995.3,1995.2,1.50218]
[1742522443047,5.37464,1995.3,1995.2,1.50218]
[1742522444941,47.0342,1995.5,1995.2,2.70575]
[1742522445139,3.207,1995.3,1995.2,1.50218]
[1742522445540,2.14499,1995.5,1995.4,0.8023]
[1742522445741,4.01004,1995.6,1995.5,0.80226]
[1742522445946,0.80221,1995.7,1995.6,0.80222]
[1742522446149,5.35191,1995.7,1995.6,2.13272]
[1742522446448,5.35191,1995.7,1995.6,3.49212]
[1742522449749,4.5497,1995.7,1995.6,3.49212]
[1742522449950,5.35188,1995.7,1995.6,3.49212]
[1742522451249,4.5497,1995.7,1995.6,3.49212]
[1742522451443,5.35188,1995.7,1995.6,3.49212]
[1742522452452,4.5497,1995.7,1995.6,3.49212]
[1742522452951,0.80970426,1995.8,1995.7,0.80218]
[1742522452952,0.00752426,1995.8,1995.7,0.80218]
[1742522453151,4.53112426,1995.8,1995.7,2.21698]
[1742522453452,5.33326426,1995.8,1995.7,2.21698]
[1742522455052,4.53112426,1995.8,1995.7,2.21698]
[1742522455552,5.33326426,1995.8,1995.7,2.21698]
[1742522455752,4.53112426,1995.8,1995.7,2.21698]
[1742522457652,4.53012426,1995.8,1995.7,2.21698]
[1742522460241,5.33226426,1995.8,1995.7,2.21698]
[1742522460445,4.53012426,1995.8,1995.7,2.21698]
[1742522460656,5.33226426,1995.8,1995.7,2.21698]
[1742522462353,1.32412426,1995.8,1995.7,2.21698]
[1742522462655,5.33226426,1995.8,1995.7,2.21698]
[1742522462846,2.12626426,1995.8,1995.7,2.21698]
[1742522463047,5.33226426,1995.8,1995.7,2.21698]
[1742522463247,4.53012426,1995.8,1995.7,2.21698]
[1742522464361,5.33226426,1995.8,1995.7,2.21698]
[1742522465264,4.53012426,1995.8,1995.7,2.21698]
[1742522465461,0.00752426,1995.8,1995.7,2.21698]
[1742522465663,2.18692,1996.1,1996.0,0.80206]
[1742522465960,1.3849,1996.1,1996.0,41.60206]
[1742522466155,4.5909,1996.1,1996.0,41.60206]
[1742522466351,4.5909,1996.1,1996.0,42.90006]
[1742522467057,3.206,1996.1,1996.0,42.90006]
[1742522467257,0.00752426,1996.2,1996.1,0.80202]
[1742522467458,4.49982426,1996.2,1996.1,2.10002]
[1742522468362,5.30180426,1996.2,1996.1,2.10002]
[1742522468562,5.30180426,1996.2,1996.1,1.298]
[1742522469258,0.80203,1996.1,1995.9,4.5785]
[1742522469465,3.43763,1996.1,1996.0,1.3765]
[1742522469657,3.43763,1996.1,1996.0,2.17856]
[1742522469850,3.43763,1996.1,1995.9,45.3785]
[1742522469851,0.80206,1996.0,1995.9,44.0078]
[1742522470159,4.5118,1996.0,1995.6,3.21532426]
[1742522470358,0.80215,1995.8,1995.7,0.80217]
[1742522470565,4.00815,1995.8,1995.7,0.80217]
[1742522471254,4.00815,1995.8,1995.7,2.17867]
[1742522471455,3.206,1995.8,1995.7,2.17867]
[1742522471657,4.00814,1995.8,1995.7,2.17867]
[1742522471861,5.31394,1995.8,1995.7,2.17867]
[1742522472063,4.5118,1995.8,1995.7,2.17867]
[1742522472256,5.31394,1995.8,1995.7,2.17867]
[1742522473570,4.00804,1996.1,1996.0,0.80202]
[1742522474062,4.00804,1996.1,1996.0,41.60202]
[1742522474262,4.00804,1996.1,1996.0,43.00172]
[1742522474761,4.00804,1996.1,1996.0,42.1997]
[1742522475453,4.00804,1996.1,1996.0,43.00176]
[1742522476067,3.206,1996.1,1996.0,43.00176]
[1742522476562,0.80218,1995.7,1995.6,0.00752426]
[1742522477060,0.80218,1995.7,1995.6,40.80752426]
[1742522477366,0.80218,1995.7,1995.6,41.50142426]
[1742522477555,0.80218,1995.7,1995.6,42.30364426]
[1742522477967,4.00817,1995.8,1995.6,42.30364426]
[1742522478167,4.00817,1995.8,1995.7,1.3216]
[1742522479068,4.00817,1995.8,1995.7,2.12378]
[1742522479266,4.00817,1995.8,1995.7,1.3216]
[1742522479466,4.00817,1995.8,1995.7,2.12378]
[1742522479675,3.206,1995.8,1995.7,2.12378]
[1742522480168,4.4863,1995.8,1995.7,2.12378]
[1742522480368,5.28844,1995.8,1995.7,2.12378]
[1742522481369,0.80213,1995.9,1995.8,0.80214]
[1742522481572,5.40543,1995.9,1995.8,0.80214]
[1742522481766,5.40543,1995.9,1995.8,41.60214]
[1742522481966,5.40543,1995.9,1995.8,42.90964]
[1742522482173,5.40543,1995.9,1995.8,42.1075]
[1742522483468,5.40543,1995.9,1995.8,42.90964]
[1742522484763,4.6033,1995.9,1995.8,42.90964]
[1742522484969,3.206,1995.9,1995.8,42.90964]
[1742522485373,4.4963,1995.9,1995.8,42.90964]
[1742522485978,5.2984,1995.9,1995.8,42.1075]
[1742522486169,5.9693,1995.9,1995.8,42.1075]
[1742522487875,5.9693,1995.9,1995.8,42.90964]
[1742522488279,4.4963,1995.9,1995.8,42.90964]
[1742522488476,1.44518,1996.0,1995.9,0.8021]
[1742522488670,4.65118,1996.0,1995.9,3.436]
[1742522489169,2.75698,1996.0,1995.9,3.436]
[1742522489470,5.96298,1996.0,1995.9,3.436]
[1742522490378,5.31988,1996.0,1995.9,3.436]
[1742522490878,5.31988,1996.0,1995.9,2.6339]
[1742522491176,0.8021,1995.9,1995.8,40.8]
[1742522491375,2.7678,1995.9,1995.8,1.3161]
[1742522491881,2.7678,1995.9,1995.8,42.1161]
[1742522493478,0.80218,1995.7,1995.6,0.00752426]
[1742522493782,4.00818,1995.7,1995.6,1.38152426]
[1742522493976,4.00818,1995.7,1995.6,42.18152426]
[1742522494177,5.34408,1995.7,1995.6,42.18152426]
[1742522500786,5.34408,1995.7,1995.6,40.80752426]
[1742522500787,8.55188,1995.7,1995.6,40.80752426]
[1742522502675,11.05188,1995.7,1995.6,40.80752426]
[1742522502881,11.05188,1995.7,1995.2,3.8791]
[1742522502882,0.8023,1995.4,1995.3,1.404]
[1742522503189,4.0083,1995.4,1995.3,1.404]
[1742522503488,4.0083,1995.4,1995.3,42.204]
[1742522503679,5.3629,1995.4,1995.3,42.204]
[1742522520218,4.0083,1995.4,1995.3,42.204]
[1742522521011,5.3451,1995.4,1995.3,42.204]
[1742522521917,4.0083,1995.4,1995.3,42.204]
[1742522522516,46.337,1995.8,1995.3,42.204]
[1742522522811,4.00821,1995.7,1995.5,0.80226]
[1742522523003,0.80222,1995.6,1995.4,4.70437]
[1742522523613,0.80222,1995.6,1995.5,40.8]
[1742522525219,47.7345,1995.8,1995.6,0.8022]
[1742522525220,0.80216,1995.8,1995.6,0.8022]
[1742522525422,3.206,1995.7,1995.6,0.8022]
[1742522525813,3.206,1995.8,1995.7,0.80218]
[1742522526018,4.00814,1995.8,1995.7,0.80218]
[1742522526708,4.00814,1995.8,1995.6,0.80219]
[1742522527322,0.80218,1995.7,1995.6,0.80219]
[1742522527520,3.206,1995.8,1995.6,0.80219]
[1742522527717,4.00817,1995.8,1995.7,0.80218]
[1742522528025,0.80218,1995.7,1995.6,0.8022]
[1742522528215,4.00817,1995.8,1995.6,0.80219]
[1742522528523,0.80218,1995.7,1995.6,0.80219]
[1742522529312,0.80222,1995.6,1995.5,41.60226]
[1742522529527,0.80222,1995.6,1995.5,44.81006]
[1742522530324,0.80222,1995.6,1995.5,44.0078]
[1742522531322,4.00822,1995.6,1995.5,3.2078]
[1742522531926,0.80234,1995.3,1995.2,3.21532426]
[1742522532115,4.00834,1995.3,1995.2,3.21532426]
[1742522532321,4.00834,1995.3,1995.2,44.01532426]
[1742522532922,4.00834,1995.3,1995.2,40.80752426]
[1742522533327,5.39464,1995.3,1995.2,40.80752426]
[1742522534930,3.206,1995.3,1995.2,41.60990426]
[1742522535427,3.206,1995.3,1995.2,44.81770426]
[1742522535825,3.206,1995.5,1995.4,0.80227]
[1742522536024,3.206,1995.5,1995.4,4.01007]
[1742522536728,3.206,1995.5,1995.4,5.32757]
[1742522537823,4.00826,1995.5,1995.4,4.5253]
[1742522538025,3.206,1995.5,1995.4,5.3276]
[1742522538229,4.00822,1995.7,1995.4,4.5253]
[1742522538428,3.206,1995.7,1995.6,0.80222]
[1742522538618,4.00818,1995.7,1995.6,0.80222]
[1742522538930,3.206,1995.7,1995.6,2.76972]
[1742522539524,4.00818,1995.7,1995.6,5.97752]
[1742522539923,3.206,1995.7,1995.6,5.97752]
[1742522540529,4.00818,1995.7,1995.6,5.97752]
[1742522541627,0.80218,1995.7,1995.6,5.97752]
[1742522541829,3.206,1995.7,1995.6,5.97752]
[1742522542131,4.00818,1995.7,1995.6,5.97752]
[1742522542330,3.206,1995.7,1995.6,5.97752]
[1742522543228,4.00818,1995.7,1995.6,5.97752]
[1742522543529,0.80218,1995.7,1995.6,5.1753]
[1742522543925,2.15898,1995.7,1995.6,4.5253]
[1742522544227,2.86428,1995.7,1995.6,1.3175]
[1742522544736,3.206,1995.8,1995.7,0.80218]
[1742522544925,3.206,1995.8,1995.7,1.48618]
[1742522545126,3.206,1995.8,1995.7,2.82608]
[1742522545327,5.36494,1995.8,1995.7,2.82608]
[1742522545721,4.5628,1995.8,1995.7,2.82608]
[1742522547427,4.5618,1995.8,1995.7,2.82608]
[1742522547829,5.36394,1995.8,1995.7,2.82608]
[1742522548025,5.36394,1995.8,1995.7,1.3399]
[1742522548230,0.80218,1995.7,1995.6,3.2078]
[1742522548432,3.51608,1995.7,1995.6,3.2078]
[1742522548737,3.51608,1995.7,1995.5,1.3512]
[1742522548738,0.80222,1995.6,1995.5,1.3512]
[1742522549031,5.30572,1995.6,1995.5,1.3512]
[1742522549227,0.8023,1995.4,1995.3,1.3702]
[1742522549423,3.205,1995.4,1995.3,1.3702]
[1742522549628,3.205,1995.4,1995.3,2.17254]
[1742522550627,4.5035,1995.4,1995.3,3.53394]
[1742522551333,5.3058,1995.4,1995.3,1.3614]
[1742522552830,4.5035,1995.4,1995.2,44.01532426]
[1742522553036,3.44644,1995.3,1995.2,45.31942426]
[1742522555943,3.44644,1995.3,1995.2,42.11162426]
[1742522562343,2.75544,1995.3,1995.2,42.11162426]
[1742522562737,2.75544,1995.3,1995.2,43.44542426]
[1742522565847,5.96144,1995.3,1995.2,43.44542426]
[1742522571249,5.96144,1995.3,1995.2,1.31162426]
[1742522571444,0.80247,1995.0,1994.9,2.157]
[1742522571644,4.00847,1995.0,1994.9,2.157]
[1742522571849,4.00847,1995.0,1994.9,42.1545]
[1742522572044,4.00847,1995.0,1994.9,1.3545]
[1742522572945,4.00847,1995.0,1994.9,0.6955]
[1742522573461,0.80251,1994.9,1994.8,44.01532426]
[1742522573654,2.17021,1994.9,1994.8,44.01532426]
[1742522573847,2.17021,1994.9,1994.8,40.80752426]
[1742522574454,2.17021,1994.9,1994.8,42.17152426]
[1742522574752,2.17021,1994.9,1994.8,1.37152426]
[1742522575056,3.53401,1994.9,1994.8,1.37152426]
[1742522577558,2.82741,1994.9,1994.8,1.37152426]
[1742522581154,0.80251,1994.9,1994.8,1.37152426]
[1742522581852,2.19691,1994.9,1994.8,1.37152426]
[1742522583948,5.40471,1994.9,1994.8,1.37152426]
[1742522584349,6.06041,1994.9,1994.8,1.37152426]
[1742522584556,6.06041,1994.9,1994.8,0.00752426]
[1742522588467,6.14795007,1994.9,1994.8,0.00752426]
[1742522588758,6.06041,1994.9,1994.8,0.00752426]
[1742522589255,8.64795095,1994.9,1994.8,4.26e-06]
[1742522589460,0.80275,1994.3,1994.2,0.6411]
[1742522589658,0.80279,1994.2,1994.1,0.6884]
[1742522589857,2.17189,1994.2,1994.1,41.4884]
[1742522590360,2.17189,1994.2,1994.1,40.8]
[1742522592651,0.80283,1994.1,1994.0,0.00752426]
[1742522592856,5.30913,1994.1,1994.0,0.00752426]
[1742522593157,5.30913,1994.1,1994.0,40.80752426]
[1742522593363,6.00023,1994.1,1994.0,40.80752426]
[1742522593559,0.80318,1993.3,1993.2,3.2078]
[1742522593762,0.80317,1993.3,1993.0,3.2078]
[1742522594064,3.207,1993.4,1993.1,41.60321]
[1742522594364,0.80315,1993.3,1993.2,0.6559]
[1742522595064,2.15555,1993.3,1993.2,1.3011]
[1742522596360,2.15555,1993.3,1993.2,0.6559]
[1742522597665,0.80315,1993.3,1993.2,0.6559]
[1742522599663,0.80319,1993.2,1993.1,41.45021622]
[1742522599864,4.01119,1993.2,1993.1,41.45021622]
[1742522600169,4.01119,1993.2,1993.1,0.65021622]
[1742522601556,4.01119,1993.2,1993.1,0.00501622]
[1742522602271,5.30369,1993.2,1993.1,0.00501622]
[1742522603569,5.30369,1993.2,1993.1,0.65301622]
[1742522605065,5.30369,1993.2,1993.1,0.00501622]
[1742522605268,2.00824,1993.0,1992.6,3.2078]
[1742522605471,0.80339,1992.7,1992.6,4.01123]
[1742522605674,4.01139,1992.7,1992.6,44.81123]
[1742522605967,3.208,1992.7,1992.6,44.81123]
[1742522609367,1.3837,1993.0,1992.6,44.0078]
[1742522609575,3.209,1992.8,1992.7,2.08249]
[1742522609768,3.209,1992.8,1992.7,0.80339]
[1742522616379,3.209,1992.8,1992.7,1.45889]
[1742522620781,4.01235,1992.8,1992.7,1.45889]
[1742522620981,5.40615,1992.8,1992.7,1.45889]
[1742522621482,4.6028,1992.8,1992.7,1.45889]
[1742522625677,4.6028,1992.8,1992.7,2.76109]
[1742522627380,5.40615,1992.8,1992.7,2.10559]
[1742522627981,5.40615,1992.8,1992.6,44.0078]
[1742522628282,2.84589,1992.7,1992.6,3.2078]
[1742522628487,2.84589,1992.7,1992.6,5.37773]
[1742522629185,2.84589,1992.7,1992.6,4.5743]
[1742522630278,2.84589,1992.7,1992.6,5.37773]
[1742522630480,0.80343,1992.6,1992.5,40.8]
[1742522630681,6.11823,1992.6,1992.5,40.8]
[1742522636190,6.11823,1992.6,1992.5,42.1605]
[1742522636491,5.3148,1992.6,1992.5,42.96397]
[1742522636890,4.6119,1992.6,1992.5,43.60947]
[1742522637091,1.4029,1992.6,1992.5,43.60947]
[1742522637292,4.6119,1992.6,1992.5,43.60947]
[1742522640595,4.6119,1992.6,1992.5,42.806]
[1742522640895,4.6119,1992.6,1992.5,43.60947]
[1742522641395,5.41533,1992.6,1992.5,43.60947]
[1742522641696,4.6119,1992.6,1992.5,43.60947]
[1742522642099,4.6119,1992.6,1992.5,46.81727]
[1742522642591,5.41533,1992.6,1992.5,46.81727]
[1742522648001,5.41533,1992.6,1992.5,6.01727]
[1742522649103,5.41533,1992.6,1992.5,1.3605]
[1742522649302,5.41533,1992.6,1992.5,2.16397]
[1742522649595,5.41533,1992.6,1992.5,1.3605]
[1742522654407,4.6119,1992.6,1992.5,2.16397]
[1742522654610,5.41533,1992.6,1992.5,2.16397]
[1742522655908,5.41533,1992.6,1992.5,5.37177]
[1742522656297,5.41533,1992.6,1992.5,4.5683]
[1742522656499,5.41533,1992.6,1992.5,5.37177]
[1742522656697,5.41533,1992.6,1992.5,4.5683]
[1742522657901,5.41533,1992.6,1992.5,5.37177]
[1742522658102,5.41533,1992.6,1992.5,4.5683]
[1742522660005,5.41533,1992.6,1992.5,5.37177]
[1742522660406,5.41533,1992.6,1992.5,4.5683]
[1742522660712,5.41533,1992.6,1992.5,5.37177]
[1742522660912,5.41533,1992.6,1992.5,2.16397]
[1742522661317,5.41533,1992.6,1992.5,1.3605]
[1742522661614,5.41533,1992.6,1992.5,2.16397]
[1742522662712,5.41533,1992.6,1992.5,1.3605]
[1742522662915,5.41533,1992.6,1992.5,2.16397]
[1742522663107,5.41533,1992.6,1992.5,1.3605]
[1742522664310,5.41533,1992.6,1992.5,2.16397]
[1742522664510,5.41533,1992.6,1992.5,1.3605]
[1742522665714,6.11383,1992.6,1992.5,1.3605]
[1742522667117,0.80351,1992.4,1992.3,45.49173]
[1742522667317,4.01251,1992.4,1992.3,45.49173]
[1742522667820,4.01251,1992.4,1992.3,46.82223]
[1742522668425,3.209,1992.4,1992.3,46.82223]
[1742522670322,4.01251,1992.4,1992.3,46.82223]
[1742522670522,3.209,1992.4,1992.3,46.82223]
[1742522671022,4.01251,1992.4,1992.3,46.82223]
[1742522671227,4.5836,1992.4,1992.3,46.82223]
[1742522671435,5.38711,1992.4,1992.3,46.82223]
[1742522671728,3.209,1992.4,1992.3,46.82223]
[1742522672520,4.01251,1992.4,1992.3,46.82223]
[1742522673727,3.209,1992.4,1992.3,46.82223]
[1742522673932,4.01251,1992.4,1992.3,46.82223]
[1742522674233,3.209,1992.4,1992.3,46.82223]
[1742522674425,4.01251,1992.4,1992.3,46.82223]
[1742522674619,3.209,1992.4,1992.3,46.82223]
[1742522676625,5.39151,1992.4,1992.3,46.82223]
[1742522677330,4.588,1992.4,1992.3,46.82223]
[1742522678731,5.39151,1992.4,1992.3,46.82223]
[1742522679329,4.588,1992.4,1992.3,43.61443]
[1742522681225,4.588,1992.4,1992.3,46.82223]
[1742522681928,5.39151,1992.4,1992.3,46.82223]
[1742522682131,4.588,1992.4,1992.3,46.82223]
[1742522683432,5.39151,1992.4,1992.3,46.82223]
[1742522684231,4.588,1992.4,1992.3,46.82223]
[1742522688036,5.39151,1992.4,1992.3,46.14183]
[1742522688238,6.06861,1992.4,1992.3,46.14183]
[1742522688539,6.06861,1992.4,1992.3,46.14185]
[1742522692438,6.06861,1992.4,1992.3,42.93405]
[1742522701555,5.39151,1992.4,1992.3,42.93405]
[1742522701849,5.39151,1992.4,1992.3,43.57435]